[Event "Weekendtournooi Groningen & PK NOSBO"]
[Site "Groningen, Netherlands"]
[Date "2023.05.18"]
[Round "1.2"]
[White "De Boer, Eelke"]
[Black "Van Foreest, Nanne"]
[Result "1-0"]
[TimeControl "90min + 30sec/move"]
[WhiteTitle "FM"]
[WhiteElo "2293"]
[BlackElo "1914"]

1. e4 {[%emt 00:41:41]} c5 2. Nf3 {[%emt 00:00:18]} e6 {[%emt 00:00:04]} 3. d4
{[%emt 00:00:19]} cxd4 {[%emt 00:00:13]} 4. Nxd4 Nf6 5. Nc3 {[%emt 00:00:31]}
Nc6 {[%emt 00:00:09]} 6. Ndb5 {[%emt 00:00:05]} Bc5 {[%emt 00:00:04]} 7. Bf4
{[%emt 00:01:23]} O-O {[%emt 00:00:04]} 8. Bc7 {[%emt 00:00:06]} Qe7 {[%emt
00:00:29]} 9. Bd6 {[%emt 00:01:02]} Bxd6 {[%emt 00:00:30]} 10. Qxd6 {[%emt
00:00:16]} Qd8 {[%emt 00:00:08]} 11. Be2 {[%emt 00:15:59]} a6 {[%emt 00:00:33]}
12. Nc7 {[%clk 01:06:38]} {[%emt 00:08:14]} Ra7 {[%clk 01:35:16]} {[%emt
00:00:13]} 13. e5 {[%clk 01:06:57]} {[%emt 00:00:09]} Ne8 {[%clk 01:34:46]}
{[%emt 00:00:58]} 14. Nxe8 {[%clk 01:07:20]} {[%emt 00:00:38]} Rxe8 {[%clk
01:34:58]} {[%emt 00:00:08]} 15. Bf3 {[%clk 01:02:33]} {[%emt 00:04:58]} Qb6
{[%clk 01:30:21]} {[%emt 00:05:11]} 16. Rb1 {[%clk 00:57:11]} {[%emt 00:05:47]}
Qa5 {[%clk 01:27:16]} {[%emt 00:03:34]} 17. Bxc6 {[%clk 00:57:17]} {[%emt
00:00:23]} dxc6 {[%clk 01:27:11]} {[%emt 00:00:42]} 18. O-O {[%clk 00:54:27]}
{[%emt 00:03:42]} c5 {[%clk 01:14:18]} {[%emt 00:12:59]} 19. Qb8 {[%clk
00:52:20]} {[%emt 00:02:33]} Qb6 {[%clk 01:11:30]} {[%emt 00:03:19]} 20. Na4
{[%clk 00:52:30]} {[%emt 00:00:40]} Qc6 {[%clk 01:11:28]} {[%emt 00:00:13]} 21.
Qxa7 {[%clk 00:51:36]} {[%emt 00:01:22]} Qxa4 {[%clk 01:11:56]} {[%emt
00:00:04]} 22. Qxc5 {[%clk 00:51:55]} {[%emt 00:00:10]} Bd7 {[%clk 01:10:36]}
{[%emt 00:01:50]} 23. b3 {[%clk 00:51:52]} {[%emt 00:00:35]} Qe4 {[%clk
01:10:26]} {[%emt 00:00:37]} 24. f3 {[%clk 00:49:30]} {[%emt 00:03:13]} Qf5
{[%clk 01:05:21]} {[%emt 00:05:23]} 25. Rbd1 {[%clk 00:49:03]} {[%emt
00:00:51]} Bc6 {[%clk 01:05:29]} {[%emt 00:00:19]} 26. Rd6 {[%clk 00:48:13]}
{[%emt 00:01:20]} h6 {[%clk 01:04:30]} {[%emt 00:01:45]} 27. Rfd1 {[%clk
00:47:13]} {[%emt 00:01:14]} Qg6 {[%clk 01:04:17]} {[%emt 00:01:21]} 28. Qf2
{[%clk 00:47:04]} {[%emt 00:00:08]} Qg5 {[%clk 01:02:43]} {[%emt 00:02:49]} 29.
Qe2 {[%clk 00:47:02]} Bb5 {[%clk 01:02:18]} {[%emt 00:01:04]} 30. c4 {[%clk
00:47:17]} Bc6 {[%clk 01:02:45]} 31. a4 {[%clk 00:45:04]} {[%emt 00:02:33]} 1-0

[Event "Weekendtournooi Groningen & PK NOSBO"]
[Site "Groningen, Netherlands"]
[Date "2023.05.18"]
[Round "1.4"]
[White "Keuning, Selwin"]
[Black "Sweet, Sandro"]
[Result "1-0"]
[TimeControl "90min + 30sec/move"]
[WhiteElo "2148"]
[BlackElo "1861"]

1. e4 {[%clk 01:30:57]} {[%emt 00:00:05]} d6 {[%clk 01:30:46]} {[%emt
00:00:46]} 2. d4 {[%clk 01:31:20]} Nf6 {[%clk 01:31:05]} 3. Nc3 {[%clk
01:31:45]} g6 {[%clk 01:30:24]} {[%emt 00:00:57]} 4. Be3 {[%clk 01:31:38]}
{[%emt 00:00:37]} Bg7 {[%clk 01:29:57]} {[%emt 00:00:57]} 5. Qd2 {[%clk
01:32:01]} {[%emt 00:00:14]} O-O {[%clk 01:27:10]} {[%emt 00:03:58]} 6. O-O-O
{[%clk 01:32:14]} a6 {[%clk 01:25:46]} {[%emt 00:01:23]} 7. Bh6 {[%clk
01:28:57]} {[%emt 00:03:51]} Bxh6 {[%clk 01:25:50]} {[%emt 00:00:23]} 8. Qxh6
{[%clk 01:29:02]} {[%emt 00:00:23]} c5 {[%clk 01:25:13]} {[%emt 00:01:09]} 9.
dxc5 {[%clk 01:24:24]} {[%emt 00:05:07]} Qa5 {[%clk 01:20:02]} {[%emt
00:05:43]} 10. cxd6 {[%clk 01:22:02]} {[%emt 00:02:50]} exd6 {[%clk 01:20:10]}
{[%emt 00:00:21]} 11. Nf3 {[%clk 01:12:20]} {[%emt 00:10:55]} Be6 {[%clk
01:15:33]} {[%emt 00:04:24]} 12. Qg5 {[%clk 01:07:16]} {[%emt 00:05:44]} Qxg5+
{[%clk 01:08:59]} {[%emt 00:06:54]} 13. Nxg5 {[%clk 01:07:36]} {[%emt
00:00:37]} Ne8 {[%clk 01:08:41]} {[%emt 00:00:32]} 14. f4 {[%clk 00:53:39]}
{[%emt 00:14:16]} h6 {[%clk 01:04:42]} {[%emt 00:04:31]} 15. Nxe6 {[%clk
00:44:10]} {[%emt 00:10:06]} fxe6 {[%clk 01:05:04]} 16. g3 {[%clk 00:44:25]}
{[%emt 00:00:32]} b5 {[%clk 01:03:28]} {[%emt 00:01:49]} 17. Bh3 {[%clk
00:34:31]} {[%emt 00:10:34]} Kf7 {[%clk 01:01:20]} {[%emt 00:02:28]} 18. f5
{[%clk 00:33:22]} {[%emt 00:01:43]} e5 {[%clk 00:59:11]} {[%emt 00:02:49]} 19.
fxg6+ {[%clk 00:28:46]} {[%emt 00:04:54]} Kxg6 {[%clk 00:59:31]} {[%emt
00:00:14]} 20. Nd5 {[%clk 00:27:22]} {[%emt 00:01:51]} Ra7 {[%clk 00:59:23]}
{[%emt 00:00:35]} 21. Bf5+ {[%clk 00:24:12]} {[%emt 00:03:41]} Kg7 {[%clk
00:59:15]} {[%emt 00:00:40]} 22. Ne3 {[%clk 00:19:46]} {[%emt 00:05:02]} Nc6
{[%clk 00:54:02]} {[%emt 00:05:56]} 23. c3 {[%clk 00:17:25]} {[%emt 00:02:45]}
Rc7 {[%clk 00:44:32]} {[%emt 00:10:14]} 24. Kb1 {[%clk 00:13:53]} {[%emt
00:03:34]} Ne7 {[%clk 00:42:05]} {[%emt 00:02:57]} 25. Rhf1 {[%clk 00:12:51]}
{[%emt 00:01:33]} Rc5 {[%clk 00:40:32]} {[%emt 00:02:02]} 26. g4 {[%clk
00:10:20]} {[%emt 00:03:02]} Rf6 {[%clk 00:39:18]} {[%emt 00:02:06]} 27. h4
{[%clk 00:10:10]} {[%emt 00:00:18]} Nxf5 {[%clk 00:37:40]} {[%emt 00:02:47]} 28.
Nxf5+ {[%clk 00:10:21]} {[%emt 00:00:09]} Kg6 {[%clk 00:37:27]} {[%emt
00:00:54]} 29. Ne7+ {[%clk 00:07:02]} {[%emt 00:03:31]} Kg7 {[%clk 00:36:34]}
{[%emt 00:01:01]} 30. Nf5+ {[%clk 00:07:29]} {[%emt 00:00:18]} Kg6 {[%clk
00:36:48]} {[%emt 00:00:03]} 31. Rd3 {[%clk 00:07:24]} {[%emt 00:00:33]} Rc4
{[%clk 00:35:41]} {[%emt 00:01:38]} 32. Re3 {[%clk 00:04:58]} {[%emt 00:02:54]}
d5 {[%clk 00:26:16]} {[%emt 00:09:56]} 33. Rfe1 {[%clk 00:02:38]} {[%emt
00:02:55]} Nc7 {[%clk 00:16:33]} {[%emt 00:10:07]} 34. exd5 {[%clk 00:00:46]}
{[%emt 00:02:21]} Rxg4 {[%clk 00:14:46]} {[%emt 00:02:29]} 35. Ne7+ {[%clk
00:00:56]} {[%emt 00:00:08]} Kf7 {[%clk 00:14:43]} {[%emt 00:00:54]} 36. Rxe5
{[%clk 00:00:50]} {[%emt 00:00:15]} Rxh4 {[%clk 00:14:53]} {[%emt 00:00:20]} 37.
d6 {[%clk 00:00:47]} {[%emt 00:00:33]} Ne6 {[%clk 00:14:00]} {[%emt 00:01:23]}
38. Nd5 {[%clk 00:00:57]} {[%emt 00:00:25]} Rg6 {[%clk 00:13:34]} {[%emt
00:00:53]} 39. d7 {[%clk 00:01:06]} {[%emt 00:00:23]} 1-0

[Event "Weekendtournooi Groningen & PK NOSBO"]
[Site "Groningen, Netherlands"]
[Date "2023.05.18"]
[Round "1.5"]
[White "Aden, Meino"]
[Black "Hummel, Paul"]
[Result "0-1"]
[TimeControl "90min + 30sec/move"]
[WhiteElo "1897"]
[BlackElo "2152"]

1. d4 {[%clk 01:30:58]} {[%emt 00:00:05]} g6 {[%clk 01:30:15]} {[%emt
00:00:43]} 2. Bf4 {[%clk 01:31:23]} {[%emt 00:00:06]} Bg7 {[%clk 01:30:18]}
{[%emt 00:00:31]} 3. c3 {[%clk 01:31:15]} {[%emt 00:00:33]} Nf6 {[%clk
01:29:12]} {[%emt 00:01:35]} 4. Nf3 {[%clk 01:30:57]} {[%emt 00:00:49]} d6
{[%clk 01:28:21]} {[%emt 00:01:22]} 5. h3 {[%clk 01:30:33]} {[%emt 00:00:53]}
O-O {[%clk 01:28:38]} {[%emt 00:00:12]} 6. Nbd2 {[%clk 01:29:36]} {[%emt
00:01:36]} Nbd7 {[%clk 01:28:29]} {[%emt 00:00:31]} 7. e4 {[%clk 01:28:57]}
{[%emt 00:01:08]} e5 {[%clk 01:20:29]} {[%emt 00:08:30]} 8. dxe5 {[%clk
01:25:35]} {[%emt 00:03:57]} dxe5 {[%clk 01:20:47]} {[%emt 00:00:07]} 9. Be3
{[%clk 01:24:24]} {[%emt 00:01:41]} Qe7 {[%clk 01:18:01]} {[%emt 00:03:19]} 10.
Bc4 {[%clk 01:21:17]} {[%emt 00:03:34]} b6 {[%clk 01:14:12]} {[%emt 00:04:19]}
11. b4 {[%clk 01:09:14]} {[%emt 00:12:36]} Bb7 {[%clk 01:02:57]} {[%emt
00:11:43]} 12. Qb1 {[%clk 01:06:54]} {[%emt 00:02:50]} a5 {[%clk 01:00:50]}
{[%emt 00:02:40]} 13. a3 {[%clk 01:03:29]} {[%emt 00:03:51]} axb4 {[%clk
01:00:27]} {[%emt 00:00:53]} 14. cxb4 {[%clk 01:03:40]} {[%emt 00:00:19]} Ne8
{[%clk 00:57:45]} {[%emt 00:03:14]} 15. O-O {[%clk 01:02:50]} {[%emt 00:01:18]}
Nd6 {[%clk 00:57:56]} {[%emt 00:00:19]} 16. Bb3 {[%clk 00:56:22]} {[%emt
00:06:58]} Nf6 {[%clk 00:54:34]} {[%emt 00:03:53]} 17. Bc2 {[%clk 00:54:25]}
{[%emt 00:02:30]} Nh5 {[%clk 00:53:30]} {[%emt 00:01:32]} 18. g3 {[%clk
00:46:29]} {[%emt 00:08:24]} f5 {[%clk 00:49:16]} {[%emt 00:10:35]} 19. Bg5
{[%clk 00:45:10]} Qd7 {[%clk 00:47:47]} 20. Kh2 {[%clk 00:43:48]} h6 {[%clk
00:39:36]} {[%emt 00:08:29]} 21. Be3 {[%clk 00:42:44]} {[%emt 00:02:07]} f4
{[%clk 00:34:44]} {[%emt 00:04:50]} 22. gxf4 {[%clk 00:43:06]} {[%emt
00:00:08]} Nxf4 {[%clk 00:33:09]} {[%emt 00:02:08]} 23. Bxf4 {[%clk 00:43:24]}
{[%emt 00:00:08]} Rxf4 {[%clk 00:33:15]} {[%emt 00:00:24]} 24. Qb3+ {[%clk
00:40:18]} {[%emt 00:03:37]} Kh7 {[%clk 00:32:51]} {[%emt 00:00:54]} 25. Qe3
{[%clk 00:38:18]} {[%emt 00:02:29]} Raf8 {[%clk 00:31:02]} {[%emt 00:02:19]} 26.
Rg1 {[%clk 00:37:06]} {[%emt 00:01:43]} Nc4 {[%clk 00:28:22]} {[%emt 00:03:10]}
0-1

[Event "Weekendtournooi Groningen & PK NOSBO"]
[Site "Groningen, Netherlands"]
[Date "2023.05.18"]
[Round "1.6"]
[White "Labruyere, Roger"]
[Black "Ambrona Navarro, Himar"]
[Result "1/2-1/2"]
[TimeControl "90min + 30sec/move"]
[WhiteElo "2169"]
[BlackElo "1833"]

1. e4 {[%clk 01:30:57]} {[%emt 00:00:42]} c6 {[%clk 01:30:51]} 2. d4 {[%clk
01:31:09]} {[%emt 00:00:13]} d5 {[%clk 01:31:15]} 3. f3 {[%clk 01:31:36]} e6
{[%clk 01:31:01]} {[%emt 00:00:27]} 4. Nc3 {[%clk 01:30:33]} {[%emt 00:01:35]}
Nf6 {[%clk 01:30:13]} {[%emt 00:01:15]} 5. Be3 {[%clk 01:30:22]} {[%emt
00:00:45]} Bb4 {[%clk 01:30:08]} {[%emt 00:00:32]} 6. e5 {[%clk 01:30:41]}
{[%emt 00:00:35]} Nfd7 {[%clk 01:29:57]} {[%emt 00:00:17]} 7. a3 {[%clk
01:31:03]} {[%emt 00:00:38]} Ba5 {[%clk 01:29:55]} {[%emt 00:00:05]} 8. f4
{[%clk 01:30:59]} {[%emt 00:00:54]} O-O {[%clk 01:27:37]} {[%emt 00:02:59]} 9.
Nf3 {[%clk 01:29:20]} {[%emt 00:01:39]} f6 {[%clk 01:27:03]} {[%emt 00:01:00]}
10. Bd3 {[%clk 01:29:33]} {[%emt 00:00:19]} c5 {[%clk 01:25:42]} {[%emt
00:02:34]} 11. O-O {[%clk 01:29:19]} {[%emt 00:00:08]} Nc6 {[%clk 01:24:59]}
{[%emt 00:01:45]} 12. exf6 {[%clk 01:29:40]} Nxf6 {[%clk 01:25:02]} {[%emt
00:00:14]} 13. Ne5 {[%clk 01:24:41]} {[%emt 00:05:11]} cxd4 {[%clk 01:20:41]}
{[%emt 00:05:12]} 14. Nxc6 {[%clk 01:24:57]} {[%emt 00:00:18]} bxc6 {[%clk
01:21:06]} 15. Bxd4 {[%clk 01:25:21]} Bb6 {[%clk 01:21:22]} 16. Bxb6 {[%clk
01:24:46]} {[%emt 00:01:04]} axb6 {[%clk 01:20:19]} {[%emt 00:02:22]} 17. Ne2
{[%clk 01:23:33]} {[%emt 00:00:55]} c5 {[%clk 01:18:53]} {[%emt 00:02:02]} 18.
c3 {[%clk 01:22:23]} {[%emt 00:02:08]} Ba6 {[%clk 01:17:46]} {[%emt 00:01:03]}
19. Bc2 {[%clk 01:21:20]} {[%emt 00:01:36]} Ng4 {[%clk 01:16:42]} {[%emt
00:01:29]} 20. Rf3 {[%clk 01:15:59]} {[%emt 00:05:54]} Qh4 {[%clk 01:10:03]}
{[%emt 00:07:10]} 21. h3 {[%clk 01:15:07]} {[%emt 00:01:21]} Nf6 {[%clk
01:08:18]} {[%emt 00:02:18]} 22. Nc1 {[%clk 01:11:19]} {[%emt 00:04:24]} Ne4
{[%clk 01:06:52]} {[%emt 00:01:49]} 23. f5 {[%clk 00:52:41]} {[%emt 00:19:06]}
Rad8 {[%clk 00:56:47]} {[%emt 00:10:40]} 24. Nd3 {[%clk 00:24:28]} {[%emt
00:28:38]} Rxf5 {[%clk 00:52:18]} {[%emt 00:05:19]} 25. Rxf5 {[%clk 00:23:29]}
{[%emt 00:01:09]} exf5 {[%clk 00:52:42]} {[%emt 00:00:24]} 26. Qf3 {[%clk
00:23:18]} {[%emt 00:00:24]} Bxd3 {[%clk 00:50:54]} {[%emt 00:02:35]} 27. Bxd3
{[%clk 00:23:47]} Qf6 {[%clk 00:49:14]} {[%emt 00:01:56]} 28. Rd1 {[%clk
00:19:49]} {[%emt 00:04:29]} g6 {[%clk 00:46:19]} {[%emt 00:03:33]} 29. Bb1
{[%clk 00:17:08]} {[%emt 00:03:00]} Qe5 {[%clk 00:44:58]} {[%emt 00:01:50]} 30.
Ba2 {[%clk 00:12:25]} {[%emt 00:05:13]} Nf6 {[%clk 00:43:21]} {[%emt 00:02:04]}
31. Qd3 {[%clk 00:10:12]} {[%emt 00:03:06]} Rd7 {[%clk 00:40:35]} {[%emt
00:02:54]} 32. Qa6 {[%clk 00:08:49]} {[%emt 00:01:55]} Qc7 {[%clk 00:40:28]}
{[%emt 00:00:42]} 33. Re1 {[%clk 00:06:37]} {[%emt 00:02:36]} Qb7 {[%clk
00:39:18]} {[%emt 00:01:40]} 34. Qxb7 {[%clk 00:06:41]} {[%emt 00:00:43]} Rxb7
{[%clk 00:39:39]} {[%emt 00:00:04]} 35. Re5 {[%clk 00:06:50]} {[%emt 00:00:10]}
c4 {[%clk 00:38:18]} {[%emt 00:01:55]} 36. a4 {[%clk 00:07:16]} {[%emt
00:00:27]} Kf7 {[%clk 00:35:27]} {[%emt 00:02:54]} 37. b3 {[%clk 00:07:24]}
{[%emt 00:00:39]} cxb3 {[%clk 00:35:08]} {[%emt 00:00:32]} 38. Bxb3 {[%clk
00:07:53]} b5 {[%clk 00:33:09]} {[%emt 00:02:30]} 39. Rxd5 {[%clk 00:07:32]}
{[%emt 00:00:57]} Ke7 {[%clk 00:28:35]} {[%emt 00:05:19]} 40. Rxb5 {[%clk
00:07:45]} {[%emt 00:00:09]} Rxb5 {[%clk 00:28:26]} {[%emt 00:00:42]} 41. axb5
{[%clk 00:08:14]} Kd6 {[%clk 00:28:43]} {[%emt 00:00:16]} 42. Bd1 {[%clk
00:05:49]} {[%emt 00:02:37]} Kc5 {[%clk 00:28:23]} {[%emt 00:00:54]} 43. Be2
{[%clk 00:06:03]} {[%emt 00:00:13]} Ne4 {[%clk 00:28:43]} {[%emt 00:00:39]} 44.
c4 {[%clk 00:06:30]} Nd6 {[%clk 00:27:02]} {[%emt 00:01:44]} 45. Kf2 {[%clk
00:06:29]} {[%emt 00:00:44]} g5 {[%clk 00:27:08]} {[%emt 00:00:35]} 46. Ke3
{[%clk 00:06:01]} {[%emt 00:00:42]} Ne4 {[%clk 00:21:50]} {[%emt 00:06:19]} 47.
Bd3 {[%clk 00:06:15]} Nd6 {[%clk 00:22:14]} {[%emt 00:00:05]} 48. h4 {[%clk
00:04:38]} {[%emt 00:01:48]} h6 {[%clk 00:21:59]} {[%emt 00:00:42]} 49. h5
{[%clk 00:04:25]} {[%emt 00:00:43]} f4+ {[%clk 00:21:39]} {[%emt 00:00:49]} 50.
Kd2 {[%clk 00:03:28]} {[%emt 00:01:27]} Ne8 {[%emt 00:00:51]} 1/2-1/2

[Event "Weekendtournooi Groningen & PK NOSBO"]
[Site "Groningen, Netherlands"]
[Date "2023.05.18"]
[Round "1.7"]
[White "Niemeijer, Leon"]
[Black "Kardoeus, David"]
[Result "0-1"]
[TimeControl "90min + 30sec/move"]
[WhiteElo "1903"]
[BlackElo "2158"]

1. d4 {[%clk 01:30:58]} {[%emt 00:00:05]} Nf6 {[%clk 01:18:56]} {[%emt
00:12:03]} 2. c4 {[%clk 01:31:22]} {[%emt 00:00:26]} g6 {[%clk 01:19:21]}
{[%emt 00:00:08]} 3. Nc3 {[%clk 01:31:19]} {[%emt 00:00:10]} Bg7 {[%clk
01:19:31]} {[%emt 00:00:17]} 4. Nf3 {[%clk 01:30:36]} {[%emt 00:01:13]} O-O
{[%clk 01:19:52]} {[%emt 00:00:29]} 5. g3 {[%clk 01:30:42]} {[%emt 00:00:08]}
d6 {[%clk 01:20:09]} {[%emt 00:00:12]} 6. Bg2 {[%clk 01:30:49]} {[%emt
00:00:20]} c5 {[%clk 01:19:35]} {[%emt 00:01:07]} 7. O-O {[%clk 01:23:09]}
{[%emt 00:08:08]} Nc6 {[%clk 01:19:58]} {[%emt 00:00:22]} 8. d5 {[%clk
01:16:55]} {[%emt 00:06:31]} Na5 {[%clk 01:20:14]} {[%emt 00:00:13]} 9. Qd3
{[%clk 01:15:50]} {[%emt 00:01:38]} a6 {[%clk 01:20:13]} {[%emt 00:00:27]} 10.
Rb1 {[%clk 01:07:17]} {[%emt 00:09:04]} b5 {[%clk 01:20:08]} {[%emt 00:00:38]}
11. cxb5 {[%clk 00:58:52]} {[%emt 00:08:51]} axb5 {[%clk 01:15:40]} {[%emt
00:05:09]} 12. Qxb5 {[%clk 00:57:25]} {[%emt 00:02:04]} Bf5 {[%clk 01:15:15]}
{[%emt 00:00:37]} 13. Ra1 {[%clk 00:55:05]} {[%emt 00:02:53]} Qc7 {[%clk
01:13:27]} {[%emt 00:02:35]} 14. e4 {[%clk 00:31:08]} {[%emt 00:24:08]} Nxe4
{[%clk 01:11:40]} {[%emt 00:02:15]} 15. Nxe4 {[%clk 00:31:24]} {[%emt
00:00:45]} Bxe4 {[%clk 01:11:59]} 16. Qe2 {[%clk 00:25:33]} {[%emt 00:06:01]}
Bxd5 {[%clk 01:10:50]} {[%emt 00:01:38]} 17. Nd2 {[%clk 00:22:59]} {[%emt
00:03:05]} Bxg2 {[%clk 01:10:46]} {[%emt 00:00:42]} 18. Kxg2 {[%clk 00:23:26]}
{[%emt 00:00:19]} Rfb8 {[%clk 01:09:41]} {[%emt 00:01:43]} 19. Rb1 {[%clk
00:22:35]} {[%emt 00:00:49]} c4 {[%clk 01:07:41]} {[%emt 00:02:30]} 20. b4
{[%clk 00:21:45]} {[%emt 00:01:20]} cxb3 {[%clk 00:58:21]} {[%emt 00:09:52]} 21.
axb3 {[%clk 00:22:09]} {[%emt 00:00:33]} Qc2 {[%clk 00:58:32]} {[%emt
00:00:11]} 22. b4 {[%clk 00:05:26]} {[%emt 00:17:12]} Nc6 {[%clk 00:57:56]}
{[%emt 00:01:09]} 23. b5 {[%clk 00:05:48]} d5 {[%clk 00:33:50]} {[%emt
00:24:20]} 24. Qf3 {[%clk 00:02:48]} {[%emt 00:03:46]} Ne5 {[%clk 00:29:10]}
{[%emt 00:04:54]} 25. Qxd5 {[%clk 00:02:22]} {[%emt 00:01:18]} Rd8 {[%clk
00:27:38]} {[%emt 00:01:57]} 26. Qe4 {[%clk 00:01:20]} {[%emt 00:01:15]} Qa2
{[%clk 00:27:08]} {[%emt 00:01:16]} 27. Bb2 {[%clk 00:00:44]} {[%emt 00:00:52]}
Ra4 {[%clk 00:25:12]} {[%emt 00:02:23]} 28. Qc2 {[%clk 00:00:37]} {[%emt
00:00:37]} Qd5+ {[%clk 00:22:41]} {[%emt 00:03:01]} 29. Kh3 {[%clk 00:00:49]}
{[%emt 00:00:35]} Ra2 {[%clk 00:14:45]} {[%emt 00:08:09]} 30. Qb3 {[%clk
00:00:39]} {[%emt 00:00:44]} Qd7+ {[%clk 00:13:43]} {[%emt 00:01:30]} 31. Kg2
{[%clk 00:00:42]} {[%emt 00:00:26]} Qb7+ {[%clk 00:13:48]} {[%emt 00:00:25]} 32.
Kh3 {[%clk 00:00:34]} {[%emt 00:00:42]} Qc8+ {[%clk 00:13:44]} {[%emt
00:00:29]} 33. Kg2 {[%clk 00:00:54]} {[%emt 00:00:39]} Qa8+ {[%clk 00:14:00]}
{[%emt 00:00:40]} 34. Kh3 {[%clk 00:00:31]} Rxd2 {[%clk 00:13:42]} {[%emt
00:00:45]} 35. b6 {[%clk 00:00:33]} {[%emt 00:00:44]} Qc8+ {[%clk 00:12:26]}
{[%emt 00:01:31]} 36. Kg2 {[%clk 00:00:51]} {[%emt 00:00:13]} Qb7+ {[%clk
00:12:37]} {[%emt 00:00:16]} 37. Kh3 {[%clk 00:01:11]} {[%emt 00:00:11]} 0-1

[Event "Weekendtournooi Groningen & PK NOSBO"]
[Site "Groningen, Netherlands"]
[Date "2023.05.18"]
[Round "1.8"]
[White "Noordenbos, Daan"]
[Black "Klooster, Jim"]
[Result "1/2-1/2"]
[TimeControl "90min + 30sec/move"]
[WhiteElo "2076"]
[BlackElo "1887"]

1. e4 c5 2. Nf3 e6 3. d4 cxd4 4. Nxd4 Nc6 5. Nc3 a6 6. a3 Qc7 7. Be3 Nf6 8. Be2
Be7 9. Qd2 b5 10. f4 Nxd4 11. Qxd4 Bb7 12. Bf3 Rc8 13. Rd1 Bxa3 14. Nxb5 Qa5+
15. Bd2 Qxb5 16. bxa3 Bxe4 17. Bxe4 Rc4 18. Bd3 Rxd4 19. Bxb5 axb5 20. Rb1 Nd5
21. Rxb5 Ke7 22. Bb4+ Kf6 23. O-O Rc8 24. Bd6 {[%clk 00:05:03]} Rd2 {[%clk
01:59:59]} 25. Rc5 {[%clk 00:05:03]} Rxc5 {[%clk 01:59:59]} 26. Bxc5 {[%clk
00:05:03]} Rxc2 {[%clk 01:59:59]} 27. Bd4+ {[%clk 00:05:03]} Ke7 {[%clk
01:59:59]} 28. g3 {[%clk 00:05:03]} Ra2 {[%clk 01:59:59]} 29. Rb1 {[%clk
00:05:03]} g6 {[%clk 01:59:59]} 30. Bc5+ {[%clk 00:05:03]} Kf6 {[%clk
01:59:59]} 31. Rb7 {[%clk 00:05:03]} Rc2 {[%clk 01:59:59]} 32. Bd6 {[%clk
00:05:03]} Kf5 {[%clk 01:59:59]} 33. Rxd7 {[%clk 00:05:03]} Kg4 {[%clk
01:59:59]} 34. Rb7 {[%clk 00:05:03]} Kf3 {[%clk 01:59:59]} 35. Rb1 {[%clk
00:05:03]} Ne3 {[%clk 01:59:59]} 36. Bb8 {[%clk 00:05:03]} Rg2+ {[%clk
01:59:59]} 37. Kh1 {[%clk 00:05:03]} Ra2 {[%clk 01:59:59]} 38. Ba7 {[%clk
00:05:03]} Rxa3 {[%clk 01:59:59]} 39. Bxe3 {[%clk 00:05:03]} Rxe3 {[%clk
01:59:59]} 40. Kg1 {[%clk 00:05:03]} f6 {[%clk 01:59:59]} 41. Rf1+ {[%clk
00:05:03]} Kg4 {[%clk 01:59:59]} 42. Rf2 {[%clk 00:05:03]} h5 {[%clk 01:59:59]}
43. Kg2 {[%clk 00:05:03]} Kf5 {[%clk 01:59:59]} 44. Ra2 {[%clk 00:05:03]} g5
{[%clk 01:59:59]} 45. Ra5+ {[%clk 00:05:03]} e5 {[%clk 01:59:59]} 46. fxe5
{[%clk 00:05:03]} Rxe5 {[%clk 01:59:59]} 47. Ra2 {[%clk 00:05:03]} g4 {[%clk
01:59:59]} 48. Rf2+ {[%clk 00:05:03]} Kg5 {[%clk 01:59:59]} 49. Ra2 {[%clk
00:05:03]} h4 {[%clk 01:59:59]} 50. gxh4+ {[%clk 00:05:03]} Kxh4 {[%clk
01:59:59]} 51. Rb2 {[%clk 00:05:03]} f5 {[%clk 01:59:59]} 52. h3 {[%clk
00:05:03]} gxh3+ {[%clk 01:59:59]} 53. Kf3 {[%clk 00:05:03]} Re1 {[%clk
01:59:59]} 54. Rb8 {[%clk 00:05:03]} Kg5 {[%clk 01:59:59]} 55. Rg8+ {[%clk
00:05:03]} Kf6 {[%clk 01:59:59]} 56. Rh8 {[%clk 00:05:03]} Ra1 {[%clk
01:59:59]} 57. Rf8+ {[%clk 00:05:03]} Kg6 {[%clk 01:59:59]} 58. Kg3 {[%clk
00:05:03]} Ra3+ {[%clk 01:59:59]} 59. Kh2 {[%clk 00:05:03]} Kg5 {[%clk
01:59:59]} 60. Rb8 {[%clk 00:05:03]} Kg4 {[%clk 01:59:59]} 61. Rg8+ {[%clk
00:05:03]} Kf4 {[%clk 01:59:59]} 62. Rg7 {[%clk 00:05:03]} Rf3 {[%clk
01:59:59]} 63. Rg8 {[%clk 00:05:03]} Ke3 {[%clk 01:59:59]} 64. Ra8 {[%clk
00:05:03]} f4 {[%clk 01:59:59]} 65. Ra3+ {[%clk 00:05:03]} Ke4 {[%clk
01:59:59]} 66. Ra4+ {[%clk 00:05:03]} Kf5 {[%clk 01:59:59]} 67. Ra8 {[%clk
00:05:03]} Rg3 {[%clk 01:59:59]} 68. Rf8+ {[%clk 00:05:03]} Kg4 {[%clk
01:59:59]} 69. Rg8+ {[%clk 00:05:03]} Kf3 {[%clk 01:59:59]} 70. Ra8 {[%clk
00:05:03]} Rg2+ {[%clk 01:59:59]} 71. Kxh3 {[%clk 00:05:03]} 1/2-1/2

[Event "Weekendtournooi Groningen & PK NOSBO"]
[Site "Groningen, Netherlands"]
[Date "2023.05.18"]
[Round "1.9"]
[White "Pouw, Marcel"]
[Black "Hommes, Elmar"]
[Result "0-1"]
[TimeControl "90min + 30sec/move"]
[WhiteElo "1817"]
[BlackElo "2050"]

1. d4 {[%clk 01:30:30]} d5 2. Nf3 {[%clk 01:30:30]} Nf6 3. g3 {[%clk 01:30:30]}
Bf5 4. Bg2 {[%clk 01:30:30]} h6 5. O-O {[%clk 01:30:30]} e6 6. c4 {[%clk
01:30:30]} c6 7. Nc3 {[%clk 01:30:30]} Be7 8. Nd2 {[%clk 01:30:30]} O-O 9. e4
{[%clk 01:30:30]} dxe4 10. Ndxe4 {[%clk 01:30:30]} Nbd7 11. Qb3 {[%clk
01:30:30]} Qb6 12. Qxb6 {[%clk 01:30:30]} axb6 13. Be3 {[%clk 01:30:30]} Rfd8
14. h3 {[%clk 01:30:30]} Nxe4 15. Nxe4 {[%clk 01:30:30]} Nf6 16. Nc3 {[%clk
01:30:30]} Bd3 17. d5 {[%clk 01:30:30]} Bxf1 18. Kxf1 {[%clk 01:30:30]} exd5 19.
Bxb6 {[%clk 01:30:30]} Rd7 20. cxd5 {[%clk 01:30:30]} Nxd5 21. Rd1 {[%clk
01:30:30]} 0-1